[Event "Icelandic Team-ch Premier 2021-22"]
[Site "Reykjavik"]
[Date "2022.03.05"]
[Round "8.12"]
[White "Pantzar, Milton"]
[Black "Petursson, Margeir"]
[Result "0-1"]
[ECO "E14"]
[WhiteElo "2422"]
[BlackElo "2447"]
[Annotator "NA"]
[PlyCount "78"]
[EventDate "2022.03.05"]
[EventType "team-tourn"]
[EventCountry "ISL"]
[SourceTitle "playchess.com"]
[Source "ChessBase"]
[SourceQuality "1"]
[TimeControl "5400+30"]

1. d4 {[%emt 0:00:03]} Nf6 {[%emt 0:00:05]} 2. c4 {[%emt 0:00:09]} e6 {[%emt 0:00:06]} 3. Nf3 {[%emt 0:00:07]} Bb4+ {[%emt 0:00:43]} 4. Nbd2 {[%emt 0:00:09]} b6 {[%emt 0:01:06]} 5. a3 {[%emt 0:00:21]} Bxd2+ {[%emt 0:00:08]} 6. Qxd2 {[%emt 0:00:06]} Bb7 {[%emt 0:00:08]} 7. e3 {[%emt 0:00:23]} a5 {[%emt 0:00:09]} 8. b3 {[%emt 0:00:36]} d6 {[%emt 0:00:44]} 9. Be2 {[%emt 0:02:18]} Nbd7 {[%emt 0:00:24]} 10. O-O {[%emt 0:00:48]} O-O {[%emt 0:00:05]} 11. Bb2 {[%emt 0:00:54]} Qe7 {[%emt 0:00:40]} 12. Qc2 {[%emt 0:01:35]} Rfd8 {[%emt 0:05:13]} 13. Nd2 {[%emt 0:04:05]} c5 {[%emt 0:00:49]} 14. a4 {[%emt 0:10:20]} Rac8 {[%emt 0:02:25]} 15. Bd3 {[%emt 0:06:44]} h6 {[%emt 0:01:12]} 16. Rfd1 {[%emt 0:01:16]} cxd4 {[%emt 0:04:20]} 17. exd4 {[%emt 0:00:28]} Nd5 {[%emt 0:01:15]} 18. Ba3 {[%emt 0:17:53]} Nf4 {[%emt 0:11:20]} 19. Bh7+ {[%emt 0:02:55]} Kh8 {[%emt 0:01:57]} 20. Be4 {[%emt 0:00:09]} Nf6 {[%emt 0:06:25]} 21. Bf3 {[%emt 0:02:27]} Qc7 {[%emt 0:05:39]} 22. Qc3 {[%emt 0:09:51]} N6d5 {[%emt 0:07:26]} 23. Qb2 {[%emt 0:00:28]} Ne7 {[%emt 0:01:35]} 24. d5 {[%emt 0:11:24]} exd5 {[%emt 0:02:38]} 25. Qd4 {[%emt 0:00:29]} Ne6 {[%emt 0:06:48]} 26. Qg4 {[%emt 0:00:46]} d4 {[%emt 0:02:18]} 27. Bb2 {[%emt 0:02:05]} d5 {[%emt 0:01:31]} 28. Rac1 {[%emt 0:03:53]} Qb8 {[%emt 0:07:18]} 29. Re1 {[%emt 0:05:08]} dxc4 {[%emt 0:03:23]} 30. Nxc4 {[%emt 0:05:45]} Rc5 {[%emt 0:01:33]} 31. Bxb7 {[%emt 0:04:31]} Qxb7 {[%emt 0:02:33]} 32. Ne5 {[%emt 0:00:18]} Nd5 {[%emt 0:03:01]} 33. Nxf7+ {[%emt 0:06:19]} Qxf7 {[%emt 0:00:09]} 34. Qxe6 {[%emt 0:01:24]} Qxe6 {[%emt 0:01:08]} 35. Rxe6 {[%emt 0:00:02]} Nf4 {[%emt 0:00:55]} 36. Rxc5 {[%emt 0:01:35]} bxc5 {[%emt 0:01:20]} 37. Re1 {[%emt 0:00:30]} Rb8 {[%emt 0:01:14]} 38. Ba3 {[%emt 0:00:16]} Rxb3 {[%emt 0:00:52]} 39. Bxc5 {[%emt 0:00:05]} Nd3 {[%emt 0:00:14]} 0-1

[Event "Icelandic Team-ch Premier 2021-22"]
[Site "Reykjavik"]
[Date "2022.03.05"]
[Round "8.13"]
[White "Thorhallsson, Throstur"]
[Black "Brynell, Stellan"]
[Result "1-0"]
[ECO "C01"]
[WhiteElo "2414"]
[BlackElo "2405"]
[Annotator "NA"]
[PlyCount "119"]
[EventDate "2022.03.05"]
[EventType "team-tourn"]
[EventCountry "ISL"]
[SourceTitle "playchess.com"]
[Source "ChessBase"]
[SourceQuality "1"]
[TimeControl "5400+30"]

1. e4 {[%emt 0:00:04]} e6 {[%emt 0:00:10]} 2. d4 {[%emt 0:00:31]} d5 {[%emt 0:00:05]} 3. Nc3 {[%emt 0:00:06]} Bb4 {[%emt 0:00:06]} 4. exd5 {[%emt 0:04:09]} exd5 {[%emt 0:00:19]} 5. Bd3 {[%emt 0:00:20]} Nf6 {[%emt 0:01:06]} 6. Nge2 {[%emt 0:02:36]} O-O {[%emt 0:10:04]} 7. a3 {[%emt 0:07:29]} Bd6 {[%emt 0:04:20]} 8. Nb5 {[%emt 0:07:01]} Be7 {[%emt 0:05:14]} 9. Bf4 {[%emt 0:01:53]} Na6 {[%emt 0:00:27]} 10. O-O {[%emt 0:04:47]} c6 {[%emt 0:07:41]} 11. Nbc3 {[%emt 0:00:13]} Nc7 {[%emt 0:00:12]} 12. h3 {[%emt 0:03:03]} Nce8 {[%emt 0:09:54]} 13. Ng3 {[%emt 0:04:17]} Nd6 {[%emt 0:00:52]} 14. Qf3 {[%emt 0:05:13]} Be6 {[%emt 0:02:09]} 15. Rfe1 {[%emt 0:02:32]} Re8 {[%emt 0:11:15]} 16. Re2 {[%emt 0:11:55]} Qd7 {[%emt 0:08:47]} 17. Rae1 {[%emt 0:02:02]} b5 $14 {[%emt 0:03:45]} 18. Bg5 {[%emt 0:07:42]} h6 {[%emt 0:03:18]} 19. Bc1 {[%emt 0:02:05]} Nh7 {[%emt 0:03:11]} 20. Nh5 {[%emt 0:05:51]} Kh8 {[%emt 0:09:26]} 21. Qg3 {[%emt 0:05:07]} Rg8 {[%emt 0:14:22]} 22. Bxh6 {[%emt 0:05:05]} Ne8 {[%emt 0:02:10]} 23. Bd2 {[%emt 0:01:48]} g6 {[%emt 0:01:34]} 24. Nf4 {[%emt 0:01:24]} Bd6 {[%emt 0:00:28]} 25. Qh4 {[%emt 0:04:23]} Bf5 {[%emt 0:00:26]} 26. Bxf5 {[%emt 0:02:05]} Qxf5 {[%emt 0:00:25]} 27. Nd3 {[%emt 0:00:26]} g5 {[%emt 0:01:23]} 28. Qg4 {[%emt 0:02:07]} Qxg4 {[%emt 0:00:34]} 29. hxg4 {[%emt 0:00:05]} Nhf6 {[%emt 0:00:35]} 30. Ne5 {[%emt 0:01:42]} Bxe5 {[%emt 0:00:23]} 31. Rxe5 {[%emt 0:00:24]} Nd6 {[%emt 0:00:33]} 32. f3 {[%emt 0:02:46]} Nc4 {[%emt 0:00:40]} 33. Rf5 {[%emt 0:00:58]} Rg6 {[%emt 0:00:32]} 34. Bxg5 {[%emt 0:00:39]} Ne8 {[%emt 0:00:24]} 35. Bc1 {[%emt 0:01:19]} Ned6 {[%emt 0:00:02]} 36. Rh5+ {[%emt 0:00:12]} Kg7 {[%emt 0:00:02]} 37. Kf2 {[%emt 0:00:28]} a5 {[%emt 0:00:11]} 38. b3 {[%emt 0:00:28]} Nxa3 {[%emt 0:01:08]} 39. Bxa3 {[%emt 0:01:37]} b4 {[%emt 0:00:01]} 40. Bc1 {[%emt 0:00:43]} bxc3 {[%emt 0:00:05]} 41. Bf4 {[%emt 0:00:20]} Nb5 {[%emt 0:01:51]} 42. Reh1 {[%emt 0:00:37]} Kf6 {[%emt 0:00:38]} 43. Rf5+ {[%emt 0:00:44]} Ke7 {[%emt 0:00:38]} 44. Rh7 {[%emt 0:00:16]} Rf8 {[%emt 0:00:23]} 45. Ke3 {[%emt 0:01:07]} Re6+ {[%emt 0:00:02]} 46. Kd3 {[%emt 0:00:13]} Re1 {[%emt 0:00:29]} 47. Bh6 {[%emt 0:00:19]} Rd1+ {[%emt 0:00:43]} 48. Ke3 {[%emt 0:01:16]} Re8 {[%emt 0:00:25]} 49. Rfxf7+ {[%emt 0:01:16]} Kd6+ {[%emt 0:00:06]} 50. Kf2 {[%emt 0:00:08]} Nxd4 {[%emt 0:00:24]} 51. Ra7 {[%emt 0:01:21]} Nxc2 {[%emt 0:01:05]} 52. Rxa5 {[%emt 0:00:09]} Nd4 {[%emt 0:00:52]} 53. Bf4+ {[%emt 0:00:16]} Ke6 {[%emt 0:00:02]} 54. Rh6+ {[%emt 0:00:16]} Kf7 {[%emt 0:00:26]} 55. Ra7+ {[%emt 0:00:05]} Kg8 {[%emt 0:00:24]} 56. Rg6+ {[%emt 0:00:21]} Kh8 {[%emt 0:00:07]} 57. Bg5 {[%emt 0:01:04]} Rf8 {[%emt 0:01:26]} 58. Bf6+ {[%emt 0:00:34]} Rxf6 {[%emt 0:00:02]} 59. Rxf6 {[%emt 0:00:04]} Kg8 {[%emt 0:00:50]} 60. Rd6 {[%emt 0:00:21]} 1-0

[Event "Icelandic Team-ch Premier 2021-22"]
[Site "Reykjavik"]
[Date "2022.03.05"]
[Round "8.14"]
[White "Petersson, Baldur Teodor"]
[Black "Jacobsen, Mikkel Manosri"]
[Result "0-1"]
[ECO "B12"]
[WhiteElo "2242"]
[BlackElo "2240"]
[Annotator "NA"]
[PlyCount "88"]
[EventDate "2022.03.05"]
[EventType "team-tourn"]
[EventCountry "ISL"]
[SourceTitle "playchess.com"]
[Source "ChessBase"]
[SourceQuality "1"]
[TimeControl "5400+30"]

1. e4 {[%emt 0:00:06]} c6 {[%emt 0:00:41]} 2. d4 {[%emt 0:00:31]} d5 {[%emt 0:00:00]} 3. e5 {[%emt 0:00:07]} Bf5 {[%emt 0:00:16]} 4. h4 {[%emt 0:00:08]} h5 {[%emt 0:00:09]} 5. Bd3 {[%emt 0:00:35]} Bxd3 {[%emt 0:00:14]} 6. Qxd3 {[%emt 0:00:07]} Qa5+ {[%emt 0:00:06]} 7. Nd2 {[%emt 0:00:10]} e6 {[%emt 0:00:04]} 8. Ngf3 {[%emt 0:00:24]} Nh6 {[%emt 0:00:08]} 9. O-O {[%emt 0:00:36]} Nf5 {[%emt 0:01:09]} 10. c4 {[%emt 0:00:48]} Be7 {[%emt 0:00:06]} 11. g3 {[%emt 0:00:50]} O-O {[%emt 0:00:10]} 12. b3 {[%emt 0:01:03]} Rd8 {[%emt 0:01:43]} 13. Bb2 {[%emt 0:02:05]} c5 {[%emt 0:02:54]} 14. cxd5 {[%emt 0:00:45]} Rxd5 {[%emt 0:00:43]} 15. Nc4 {[%emt 0:00:42]} Qd8 {[%emt 0:12:00]} 16. Ne3 {[%emt 0:09:06]} Nxe3 {[%emt 0:00:33]} 17. Qxe3 {[%emt 0:00:54]} cxd4 {[%emt 0:03:40]} 18. Bxd4 {[%emt 0:01:39]} Nc6 {[%emt 0:00:14]} 19. Bb2 {[%emt 0:14:06]} Qa5 {[%emt 0:06:19]} 20. a3 {[%emt 0:12:34]} Rad8 {[%emt 0:00:58]} 21. b4 {[%emt 0:02:33]} Qa4 {[%emt 0:01:05]} 22. Qe4 {[%emt 0:01:49]} a5 {[%emt 0:06:57]} 23. Bc1 {[%emt 0:01:39]} g6 {[%emt 0:08:45]} 24. Bg5 {[%emt 0:07:17]} Bxg5 {[%emt 0:01:05]} 25. Nxg5 {[%emt 0:01:26]} Rxe5 {[%emt 0:07:38]} 26. Qf4 {[%emt 0:03:42]} Rf5 {[%emt 0:01:35]} 27. Qc7 {[%emt 0:00:50]} Qb5 {[%emt 0:15:29]} 28. bxa5 {[%emt 0:06:03]} Qe2 {[%emt 0:08:54]} 29. Rae1 {[%emt 0:03:49]} Qd3 {[%emt 0:00:57]} 30. Qxb7 {[%emt 0:05:24]} Nxa5 {[%emt 0:00:43]} 31. Qb4 {[%emt 0:02:05]} Nc4 {[%emt 0:00:56]} 32. Ne4 {[%emt 0:09:56]} Rd4 {[%emt 0:03:15]} 33. Qb8+ {[%emt 0:01:56]} Kg7 {[%emt 0:01:21]} 34. Qb7 {[%emt 0:00:07]} Qf3 {[%emt 0:04:15]} 35. a4 {[%emt 0:04:54]} g5 {[%emt 0:01:52]} 36. hxg5 {[%emt 0:02:20]} h4 {[%emt 0:00:55]} 37. Nc5 {[%emt 0:02:02]} Qxb7 {[%emt 0:01:26]} 38. Nxb7 {[%emt 0:00:02]} Nd2 {[%emt 0:00:30]} 39. a5 {[%emt 0:02:43]} Nxf1 {[%emt 0:02:52]} 40. Ra1 {[%emt 0:01:14]} hxg3 {[%emt 0:00:18]} 41. fxg3 {[%emt 0:00:50]} Nxg3 {[%emt 0:01:19]} 42. a6 {[%emt 0:00:31]} Ne2+ {[%emt 0:00:25]} 43. Kg2 {[%emt 0:00:13]} Rg4+ {[%emt 0:00:07]} 44. Kh3 {[%emt 0:00:15]} Rg3+ {[%emt 0:00:06]} 0-1

[Event "Icelandic Team-ch Premier 2021-22"]
[Site "Reykjavik"]
[Date "2022.03.05"]
[Round "8.15"]
[White "Johannesson, Ingvar Thor"]
[Black "Edvardsson, Kristjan"]
[Result "1-0"]
[ECO "A57"]
[WhiteElo "2315"]
[BlackElo "2223"]
[Annotator "NA"]
[PlyCount "64"]
[EventDate "2022.03.05"]
[EventType "team-tourn"]
[EventCountry "ISL"]
[SourceTitle "playchess.com"]
[Source "ChessBase"]
[SourceQuality "1"]
[TimeControl "5400+30"]

1. d4 {[%emt 0:00:03]} Nf6 {[%emt 0:00:46]} 2. c4 {[%emt 0:00:20]} c5 {[%emt 0:00:50]} 3. d5 {[%emt 0:00:10]} b5 {[%emt 0:00:12]} 4. cxb5 {[%emt 0:00:08]} a6 {[%emt 0:00:06]} 5. f3 {[%emt 0:05:43]} c4 {[%emt 0:07:12]} 6. e4 {[%emt 0:03:11]} e6 {[%emt 0:03:56]} 7. Bxc4 {[%emt 0:19:24]} axb5 {[%emt 0:01:50]} 8. Bxb5 {[%emt 0:05:10]} Bc5 {[%emt 0:00:25]} 9. Nc3 {[%emt 0:03:10]} Qb6 {[%emt 0:00:57]} 10. Nh3 {[%emt 0:06:29]} O-O {[%emt 0:01:22]} 11. Bg5 {[%emt 0:08:08]} exd5 {[%emt 0:07:27]} 12. Bxf6 {[%emt 0:07:15]} Qxf6 {[%emt 0:11:02]} 13. Qxd5 {[%emt 0:05:45]} d6 {[%emt 0:04:28]} 14. Qxa8 {[%emt 0:14:06]} Bxh3 {[%emt 0:12:06]} 15. gxh3 {[%emt 0:02:02]} Qh4+ {[%emt 0:08:11]} 16. Kd1 {[%emt 0:01:19]} Qf2 {[%emt 0:01:03]} 17. Be2 {[%emt 0:04:45]} Nd7 {[%emt 0:03:17]} 18. Qd5 {[%emt 0:01:08]} Rb8 {[%emt 0:00:40]} 19. Rf1 {[%emt 0:03:32]} Qxh2 {[%emt 0:01:28]} 20. Kc2 {[%emt 0:02:12]} Ne5 {[%emt 0:02:18]} 21. f4 {[%emt 0:01:15]} Ng6 {[%emt 0:00:18]} 22. Qd2 {[%emt 0:00:30]} Qxh3 {[%emt 0:01:19]} 23. Rad1 {[%emt 0:01:03]} Qg3 {[%emt 0:00:46]} 24. Bc4 {[%emt 0:01:18]} Be3 {[%emt 0:01:05]} 25. Qxd6 {[%emt 0:01:05]} Qg2+ {[%emt 0:01:37]} 26. Be2 {[%emt 0:02:19]} Rc8 {[%emt 0:00:15]} 27. Qd3 {[%emt 0:00:11]} Bb6 {[%emt 0:03:12]} 28. Qf3 {[%emt 0:00:34]} Nxf4 {[%emt 0:02:14]} 29. Qxf4 {[%emt 0:01:14]} Qxe2+ {[%emt 0:00:08]} 30. Kb1 {[%emt 0:00:09]} Qc4 {[%emt 0:00:08]} 31. Nd5 {[%emt 0:01:02]} Qc2+ {[%emt 0:01:31]} 32. Ka1 {[%emt 0:00:02]} Rf8 {[%emt 0:00:19]} 1-0

[Event "Icelandic Team-ch Premier 2021-22"]
[Site "Reykjavik"]
[Date "2022.03.05"]
[Round "8.16"]
[White "Crevatin, Leo"]
[Black "Birkisson, Bardur Orn"]
[Result "1-0"]
[ECO "D15"]
[WhiteElo "2267"]
[BlackElo "2160"]
[Annotator "NA"]
[PlyCount "55"]
[EventDate "2022.03.05"]
[EventType "team-tourn"]
[EventCountry "ISL"]
[SourceTitle "playchess.com"]
[Source "ChessBase"]
[SourceQuality "1"]
[TimeControl "5400+30"]

1. d4 {[%emt 0:00:04]} d5 {[%emt 0:00:11]} 2. c4 {[%emt 0:00:06]} c6 {[%emt 0:00:19]} 3. Nf3 {[%emt 0:00:05]} Nf6 {[%emt 0:00:18]} 4. e3 {[%emt 0:00:06]} Bf5 {[%emt 0:01:38]} 5. Nc3 {[%emt 0:00:07]} a6 {[%emt 0:02:23]} 6. Ne5 {[%emt 0:00:19]} e6 {[%emt 0:03:56]} 7. g4 {[%emt 0:06:13]} Bg6 {[%emt 0:06:07]} 8. h4 {[%emt 0:00:51]} dxc4 {[%emt 0:01:57]} 9. h5 {[%emt 0:12:00]} Bd3 {[%emt 0:04:40]} 10. Bxd3 {[%emt 0:02:01]} cxd3 {[%emt 0:00:35]} 11. g5 {[%emt 0:07:19]} Nfd7 {[%emt 0:03:39]} 12. Nf3 {[%emt 0:01:18]} c5 {[%emt 0:13:58]} 13. Qxd3 {[%emt 0:00:26]} Nc6 {[%emt 0:08:23]} 14. Bd2 {[%emt 0:02:42]} cxd4 {[%emt 0:10:12]} 15. exd4 {[%emt 0:00:32]} Nde5 {[%emt 0:02:21]} 16. Nxe5 {[%emt 0:01:55]} Nxe5 {[%emt 0:00:23]} 17. Qe2 {[%emt 0:11:27]} Qxd4 {[%emt 0:03:17]} 18. O-O-O {[%emt 0:00:58]} Nd3+ {[%emt 0:09:05]} 19. Kb1 {[%emt 0:00:33]} O-O-O {[%emt 0:00:34]} 20. Be3 {[%emt 0:02:51]} Qc4 {[%emt 0:01:28]} 21. Bb6 {[%emt 0:05:33]} Rd7 {[%emt 0:02:01]} 22. Rh3 {[%emt 0:02:47]} Qc6 {[%emt 0:09:46]} 23. Rhxd3 {[%emt 0:02:29]} Rxd3 {[%emt 0:00:56]} 24. Qxd3 {[%emt 0:00:04]} Qxb6 {[%emt 0:00:08]} 25. Qd7+ {[%emt 0:00:04]} Kb8 {[%emt 0:00:07]} 26. Qe8+ {[%emt 0:03:33]} Ka7 {[%emt 0:00:11]} 27. Rd8 {[%emt 0:02:39]} Qc7 {[%emt 0:02:51]} 28. Na4 {[%emt 0:01:44]} 1-0

[Event "Icelandic Team-ch Premier 2021-22"]
[Site "Reykjavik"]
[Date "2022.03.05"]
[Round "8.18"]
[White "Jensson, Einar Hjalti"]
[Black "Steingrimsson, Hedinn"]
[Result "0-1"]
[ECO "E15"]
[WhiteElo "2326"]
[BlackElo "2535"]
[Annotator "ChessBase"]
[PlyCount "84"]
[EventDate "2022.03.05"]
[EventType "team-tourn"]
[EventCountry "ISL"]
[SourceTitle "playchess.com"]
[Source "ChessBase"]
[SourceQuality "1"]
[TimeControl "5400+30"]

1. d4 {[%emt 0:00:03]} Nf6 {[%emt 0:00:07]} 2. c4 {[%emt 0:00:09]} e6 {[%emt 0:00:14]} 3. Nf3 {[%emt 0:00:04]} b6 {[%emt 0:02:10]} 4. g3 {[%emt 0:00:33]} Ba6 {[%emt 0:00:11]} 5. b3 {[%emt 0:00:05]} Bb4+ {[%emt 0:01:13]} 6. Bd2 {[%emt 0:00:05]} Be7 {[%emt 0:00:04]} 7. Bg2 {[%emt 0:00:08]} c6 {[%emt 0:00:56]} 8. Bc3 {[%emt 0:00:12]} d5 {[%emt 0:17:15]} 9. Nbd2 {[%emt 0:01:45]} Nbd7 {[%emt 0:05:00]} 10. O-O {[%emt 0:03:04]} Rc8 {[%emt 0:07:21]} 11. Bb2 {[%emt 0:02:54]} O-O {[%emt 0:04:18]} 12. Rc1 {[%emt 0:00:39]} c5 {[%emt 0:04:54]} 13. Re1 {[%emt 0:03:17]} b5 {[%emt 0:09:14]} 14. cxd5 {[%emt 0:49:05]} Nxd5 {[%emt 0:00:12]} 15. a3 {[%emt 0:02:24]} b4 {[%emt 0:01:52]} 16. axb4 {[%emt 0:02:13]} cxb4 {[%emt 0:12:43]} 17. Rxc8 {[%emt 0:01:33]} Qxc8 {[%emt 0:01:34]} 18. Qa1 {[%emt 0:01:43]} Qb7 {[%emt 0:01:57]} 19. Nc4 {[%emt 0:05:12]} Rc8 {[%emt 0:02:09]} 20. Nfd2 {[%emt 0:02:25]} N7b6 {[%emt 0:07:54]} 21. Rc1 {[%emt 0:02:49]} Bb5 {[%emt 0:01:27]} 22. Qa5 {[%emt 0:01:27]} Bc6 {[%emt 0:03:08]} 23. Ne5 {[%emt 0:01:42]} Be8 {[%emt 0:00:49]} 24. Nec4 {[%emt 0:02:55]} Bc6 {[%emt 0:02:29]} 25. Ne5 {[%emt 0:02:10]} Be8 {[%emt 0:00:03]} 26. Nec4 {[%emt 0:00:26]} h6 {[%emt 0:03:09]} 27. e4 {[%emt 0:01:59]} Nc7 {[%emt 0:02:32]} 28. e5 {[%emt 0:05:48]} Nbd5 {[%emt 0:01:02]} 29. Ne4 {[%emt 0:03:55]} Nb5 {[%emt 0:00:08]} 30. Ra1 {[%emt 0:01:26]} Bc6 {[%emt 0:00:41]} 31. Qa6 {[%emt 0:02:00]} Qd7 {[%emt 0:00:39]} 32. Ned6 {[%emt 0:01:49]} Bxd6 {[%emt 0:01:17]} 33. Nxd6 {[%emt 0:00:23]} Nxd6 {[%emt 0:03:55]} 34. exd6 {[%emt 0:00:01]} Nc3 {[%emt 0:00:27]} 35. Qxa7 {[%emt 0:00:30]} Qxd6 {[%emt 0:00:57]} 36. Qa6 {[%emt 0:00:13]} Qd7 {[%emt 0:00:13]} 37. Rc1 {[%emt 0:01:15]} Bb5 {[%emt 0:00:37]} 38. Qa1 {[%emt 0:00:21]} Ne2+ {[%emt 0:00:06]} 39. Kh1 {[%emt 0:00:04]} Nxc1 {[%emt 0:00:02]} 40. Bxc1 {[%emt 0:00:06]} Bc6 {[%emt 0:00:14]} 41. Qb2 {[%emt 0:00:40]} Bxg2+ {[%emt 0:00:04]} 42. Kxg2 {[%emt 0:00:04]} Qc6+ {[%emt 0:00:03]} 0-1

[Event "Icelandic Team-ch Premier 2021-22"]
[Site "Reykjavik"]
[Date "2022.03.05"]
[Round "8.19"]
[White "Ris, Robert"]
[Black "Bergsson, Snorri"]
[Result "1-0"]
[ECO "C02"]
[WhiteElo "2468"]
[BlackElo "2230"]
[Annotator "ChessBase"]
[PlyCount "64"]
[EventDate "2022.03.05"]
[EventType "team-tourn"]
[EventCountry "ISL"]
[SourceTitle "playchess.com"]
[Source "ChessBase"]
[SourceQuality "1"]
[TimeControl "5400+30"]

1. e4 {[%emt 0:00:09]} e6 {[%emt 0:00:05]} 2. d4 {[%emt 0:00:13]} d5 {[%emt 0:00:04]} 3. e5 {[%emt 0:00:24]} c5 {[%emt 0:00:04]} 4. c3 {[%emt 0:00:05]} Nc6 {[%emt 0:00:05]} 5. Nf3 {[%emt 0:00:13]} Nge7 {[%emt 0:00:06]} 6. Bd3 {[%emt 0:08:01]} cxd4 {[%emt 0:01:22]} 7. cxd4 {[%emt 0:00:18]} Nf5 {[%emt 0:00:16]} 8. Bxf5 {[%emt 0:01:38]} exf5 {[%emt 0:00:04]} 9. Nc3 {[%emt 0:01:36]} Be6 {[%emt 0:01:43]} 10. Ne2 {[%emt 0:02:16]} Be7 {[%emt 0:02:48]} 11. h4 {[%emt 0:02:44]} h6 {[%emt 0:00:28]} 12. h5 {[%emt 0:08:58]} Qb6 {[%emt 0:03:33]} 13. a3 {[%emt 0:03:31]} Rc8 {[%emt 0:00:59]} 14. Nf4 {[%emt 0:18:37]} Qb5 {[%emt 0:10:05]} 15. Rh3 {[%emt 0:08:13]} Kd7 {[%emt 0:12:10]} 16. Bd2 {[%emt 0:12:40]} a5 {[%emt 0:16:58]} 17. Rg3 {[%emt 0:03:20]} Rhg8 {[%emt 0:00:22]} 18. Rb1 {[%emt 0:04:46]} Nd8 {[%emt 0:14:37]} 19. Ng1 {[%emt 0:04:35]} Bg5 {[%emt 0:08:08]} 20. Nge2 {[%emt 0:02:31]} g6 {[%emt 0:08:45]} 21. b4 {[%emt 0:03:14]} Bxf4 {[%emt 0:03:20]} 22. Nxf4 {[%emt 0:01:49]} g5 {[%emt 0:01:00]} 23. bxa5 {[%emt 0:00:54]} Qc4 {[%emt 0:00:40]} 24. Ne2 {[%emt 0:02:05]} Qc2 {[%emt 0:02:37]} 25. Rgb3 {[%emt 0:02:00]} Qxd1+ {[%emt 0:00:16]} 26. Kxd1 {[%emt 0:00:12]} f4 {[%emt 0:00:28]} 27. Nc3 {[%emt 0:02:10]} Rc6 {[%emt 0:05:41]} 28. Na4 {[%emt 0:01:12]} Kc7 {[%emt 0:01:37]} 29. Nc5 {[%emt 0:00:56]} Bc8 {[%emt 0:02:31]} 30. a6 {[%emt 0:00:49]} Rxa6 {[%emt 0:00:17]} 31. Nxa6+ {[%emt 0:00:17]} bxa6 {[%emt 0:00:02]} 32. Ba5+ {[%emt 0:01:24]} Kd7 {[%emt 0:00:09]} 1-0

[Event "Icelandic Team-ch Premier 2021-22"]
[Site "Reykjavik"]
[Date "2022.03.05"]
[Round "8.20"]
[White "Einarsson, Halldor Gretar"]
[Black "Ragnarsson, Dagur"]
[Result "1-0"]
[ECO "A65"]
[WhiteElo "2207"]
[BlackElo "2351"]
[Annotator "NA"]
[PlyCount "57"]
[EventDate "2022.03.05"]
[EventType "team-tourn"]
[EventCountry "ISL"]
[SourceTitle "playchess.com"]
[Source "ChessBase"]
[SourceQuality "1"]
[TimeControl "5400+30"]

1. d4 {[%emt 0:00:04]} Nf6 {[%emt 0:00:07]} 2. c4 {[%emt 0:00:09]} g6 {[%emt 0:00:06]} 3. f3 {[%emt 0:00:09]} c5 {[%emt 0:00:05]} 4. d5 {[%emt 0:01:25]} d6 {[%emt 0:00:30]} 5. Nc3 {[%emt 0:01:35]} Bg7 {[%emt 0:00:55]} 6. e4 {[%emt 0:00:26]} O-O {[%emt 0:00:14]} 7. Nge2 {[%emt 0:01:25]} e6 {[%emt 0:00:07]} 8. Ng3 {[%emt 0:00:35]} exd5 {[%emt 0:00:07]} 9. cxd5 {[%emt 0:00:16]} a6 {[%emt 0:00:06]} 10. a4 {[%emt 0:00:32]} Nbd7 {[%emt 0:00:04]} 11. Be2 {[%emt 0:00:36]} Ne8 {[%emt 0:00:47]} 12. Be3 {[%emt 0:03:46]} Rb8 {[%emt 0:06:37]} 13. Qd2 {[%emt 0:10:19]} Nc7 {[%emt 0:10:17]} 14. Bh6 {[%emt 0:01:30]} b5 {[%emt 0:01:34]} 15. Bxg7 {[%emt 0:02:46]} Kxg7 {[%emt 0:02:17]} 16. axb5 {[%emt 0:00:25]} axb5 {[%emt 0:00:19]} 17. O-O {[%emt 0:06:34]} c4 {[%emt 0:12:34]} 18. f4 {[%emt 0:01:05]} Nc5 {[%emt 0:02:15]} 19. Bd1 {[%emt 0:07:56]} Ba6 {[%emt 0:15:53]} 20. Qd4+ {[%emt 0:02:38]} f6 {[%emt 0:04:43]} 21. e5 {[%emt 0:02:15]} Nd3 {[%emt 0:03:31]} 22. exd6 {[%emt 0:15:29]} Qxd6 {[%emt 0:00:13]} 23. Nge4 {[%emt 0:00:19]} Qb6 {[%emt 0:11:52]} 24. Qxb6 {[%emt 0:00:08]} Rxb6 {[%emt 0:00:04]} 25. d6 {[%emt 0:00:44]} f5 {[%emt 0:00:10]} 26. dxc7 {[%emt 0:02:14]} fxe4 {[%emt 0:00:05]} 27. f5 {[%emt 0:00:40]} Bb7 {[%emt 0:17:24]} 28. Ra7 {[%emt 0:03:40]} Ne5 {[%emt 0:07:16]} 29. Nd5 {[%emt 0:01:21]} 1-0

[Event "Icelandic Team-ch Premier 2021-22"]
[Site "Reykjavik"]
[Date "2022.03.05"]
[Round "8.21"]
[White "Bjornsson, Sigurbjorn"]
[Black "Ornolfsson, Magnus P."]
[Result "1-0"]
[ECO "C45"]
[WhiteElo "2315"]
[BlackElo "2163"]
[Annotator "NA"]
[PlyCount "83"]
[EventDate "2022.03.05"]
[EventType "team-tourn"]
[EventCountry "ISL"]
[SourceTitle "playchess.com"]
[Source "ChessBase"]
[SourceQuality "1"]
[TimeControl "5400+30"]

1. e4 {[%emt 0:00:03]} e5 {[%emt 0:00:30]} 2. Nf3 {[%emt 0:00:05]} Nc6 {[%emt 0:00:05]} 3. d4 {[%emt 0:00:10]} exd4 {[%emt 0:00:13]} 4. Nxd4 {[%emt 0:00:05]} Bc5 {[%emt 0:00:20]} 5. Nxc6 {[%emt 0:00:07]} Qf6 {[%emt 0:05:00]} 6. Qf3 {[%emt 0:00:09]} dxc6 {[%emt 0:02:21]} 7. Nc3 {[%emt 0:16:17]} Be6 {[%emt 0:13:01]} 8. Be3 {[%emt 0:02:09]} Qxf3 {[%emt 0:02:53]} 9. gxf3 {[%emt 0:00:17]} Bxe3 {[%emt 0:00:22]} 10. fxe3 {[%emt 0:00:07]} O-O-O {[%emt 0:02:37]} 11. Rg1 {[%emt 0:01:28]} g6 {[%emt 0:00:28]} 12. Bd3 {[%emt 0:03:19]} Ne7 {[%emt 0:02:07]} 13. Ne2 {[%emt 0:01:17]} f6 {[%emt 0:05:53]} 14. O-O-O {[%emt 0:07:27]} c5 {[%emt 0:01:44]} 15. Nf4 {[%emt 0:01:00]} Bf7 {[%emt 0:00:58]} 16. h4 {[%emt 0:08:12]} Nc6 {[%emt 0:05:24]} 17. a3 {[%emt 0:00:08]} Ne5 {[%emt 0:03:14]} 18. Be2 {[%emt 0:01:10]} Rxd1+ {[%emt 0:05:25]} 19. Rxd1 {[%emt 0:01:28]} Rd8 {[%emt 0:04:13]} 20. Rxd8+ {[%emt 0:13:19]} Kxd8 {[%emt 0:00:07]} 21. Kd2 {[%emt 0:00:21]} Ke7 {[%emt 0:01:15]} 22. Nh3 {[%emt 0:02:46]} Be6 {[%emt 0:03:05]} 23. Nf2 {[%emt 0:00:19]} b6 {[%emt 0:02:57]} 24. f4 {[%emt 0:11:55]} Nf7 {[%emt 0:01:07]} 25. b3 {[%emt 0:07:49]} a5 {[%emt 0:01:36]} 26. a4 {[%emt 0:02:28]} Nd6 {[%emt 0:01:31]} 27. c4 {[%emt 0:00:25]} Bd7 {[%emt 0:02:22]} 28. h5 {[%emt 0:01:23]} gxh5 {[%emt 0:04:14]} 29. Bxh5 {[%emt 0:00:08]} Be8 {[%emt 0:02:48]} 30. Bxe8 {[%emt 0:03:03]} Nxe8 {[%emt 0:00:11]} 31. Ke2 {[%emt 0:03:42]} Nd6 {[%emt 0:01:13]} 32. Kf3 {[%emt 0:00:21]} Nf7 {[%emt 0:05:26]} 33. Nd3 {[%emt 0:00:34]} Ke6 {[%emt 0:01:42]} 34. Kg4 {[%emt 0:02:00]} Nh6+ {[%emt 0:03:43]} 35. Kh4 {[%emt 0:00:47]} f5 {[%emt 0:09:48]} 36. Kh5 {[%emt 0:01:25]} Nf7 {[%emt 0:04:43]} 37. e5 {[%emt 0:00:37]} Ke7 {[%emt 0:00:25]} 38. Nf2 {[%emt 0:01:08]} Ke6 {[%emt 0:01:11]} 39. Nh3 {[%emt 0:00:27]} Nxe5 {[%emt 0:00:41]} 40. fxe5 {[%emt 0:02:54]} Kxe5 {[%emt 0:00:09]} 41. Nf2 {[%emt 0:00:26]} f4 {[%emt 0:02:11]} 42. e4 {[%emt 0:08:15]} 1-0